fUSD/lending_fUSD_20240319
["ID","MTS","AMOUNT","RATE_DAILY","PERIOD"]
[319582872,1710882634897,-922.7,0.00029863,2]
[319582873,1710882634907,-921.14,0.00029863,2]
[319582874,1710882634918,-72029.82129144,0.000299,2]
[319582875,1710882634928,-17152.30049207,0.00029956,2]
[319582876,1710882634938,-2483.87174996,0.0003,2]
[319582877,1710882634948,-309.77515012,0.0003,2]
[319582878,1710882634958,-6000.0,0.0003,4]
[319582879,1710882634968,-1401.55973813,0.0003,5]
[319582880,1710882634978,-2200.0,0.0003,3]
[319582881,1710882634987,-2500.0,0.0003,10]
[319582882,1710882634997,-433.29651531,0.00030036,17]
[319582883,1710882635007,-379.32461354,0.00030036,2]
[319582884,1710882635017,-204.54628221,0.00030036,5]
[319582885,1710882635027,-222.032006,0.00030063,4]
[319582886,1710882635037,-222.032006,0.00030063,3]
[319582887,1710882635048,-222.032006,0.00030073,3]
[319582888,1710882635058,-222.032006,0.00030073,4]
[319582889,1710882635068,-222.032006,0.00030083,4]
[319582890,1710882635079,-222.032006,0.00030083,3]
[319582891,1710882635089,-222.032006,0.00030093,3]
[319582892,1710882635099,-222.032006,0.00030093,4]
[319582893,1710882635109,-222.032006,0.00030103,4]
[319582894,1710882635119,-222.032006,0.00030103,3]
[319582895,1710882635129,-520.83333,0.0003011,2]
[319582896,1710882635139,-222.032006,0.00030113,3]
[319582897,1710882635150,-222.032006,0.00030113,4]
[319582898,1710882635160,-222.032006,0.00030123,4]
[319582899,1710882635171,-222.032006,0.00030123,3]
[319582900,1710882635182,-222.032006,0.00030133,3]
[319582901,1710882635192,-222.032006,0.00030133,4]
[319582902,1710882635202,-286.45622506,0.00030134,4]
[319582903,1710882635212,-13747.34411429,0.00030134,4]
[319582904,1710882635221,-2997.921875,0.00030134,4]
[319582905,1710882635231,-155.32385917,0.00030134,4]
[319582906,1710882635241,-5000.0,0.00030134,7]
[319582907,1710882635251,-3045.85830008,0.00030134,4]
[319582908,1710882635262,-6239.59756344,0.00030135,4]
[319582909,1710882635272,-150.0,0.00030135,2]
[319582910,1710882635282,-500.0,0.00030136,2]
[319582911,1710882635292,-500.0,0.00030136,2]
[319582912,1710882635302,-500.0,0.00030136,2]
[319582913,1710882635313,-190.93939,0.00030136,2]
[319582914,1710882635323,-360.30772803,0.00030136,2]
[319582915,1710882635334,-500.0,0.00030136,2]
[319582916,1710882635343,-500.0,0.00030136,2]
[319582917,1710882635353,-500.0,0.00030136,2]
[319582918,1710882635362,-500.0,0.00030136,2]
[319582919,1710882635372,-500.0,0.00030136,2]
[319582920,1710882635382,-1688.28,0.00030136,2]
[319582921,1710882635392,-500.0,0.00030136,2]
[319582922,1710882635402,-957.02,0.00030136,2]
[319582923,1710882635413,-699.61,0.00030136,2]
[319582924,1710882635423,-500.0,0.00030136,2]
[319582925,1710882635433,-500.0,0.00030136,2]
[319582926,1710882635443,-1737.59,0.00030136,2]
[319582927,1710882635452,-1142.11,0.00030136,2]
[319582928,1710882635463,-500.0,0.00030136,2]
[319582929,1710882635474,-524.58,0.00030136,2]
[319582930,1710882635995,-901.55,0.00030136,2]
[319582931,1710882636007,-578.28,0.00030136,2]
[319582932,1710882636017,-500.0,0.00030136,2]
[319582933,1710882636027,-511.93,0.00030136,2]
[319582934,1710882636037,-500.0,0.00030136,2]
[319582935,1710882636048,-1452.37,0.00030136,2]
[319582936,1710882636059,-701.04,0.00030136,2]
[319582937,1710882636069,-500.0,0.00030136,2]
[319582938,1710882636081,-1154.81,0.00030136,2]
[319582939,1710882636091,-500.0,0.00030136,2]
[319582940,1710882636101,-500.0,0.00030136,2]
[319582941,1710882636111,-500.0,0.00030136,2]
[319582942,1710882636121,-1226.67,0.00030136,2]
[319582943,1710882636131,-1196.63,0.00030136,2]
[319582944,1710882636141,-621.74,0.00030136,2]
[319582945,1710882636150,-500.0,0.00030136,2]
[319582946,1710882636161,-500.0,0.00030136,2]
[319582947,1710882636170,-500.0,0.00030136,2]
[319582948,1710882636180,-793.72,0.00030136,2]
[319582949,1710882636189,-500.0,0.00030136,2]
[319582950,1710882636199,-500.0,0.00030136,2]
[319582951,1710882636208,-500.0,0.00030136,2]
[319582952,1710882636218,-767.67,0.00030136,2]
[319582953,1710882636228,-500.0,0.00030136,2]
[319582954,1710882636237,-500.0,0.00030136,2]
[319582955,1710882636247,-963.61,0.00030136,2]
[319582956,1710882636256,-757.06,0.00030136,2]
[319582957,1710882636266,-503.33,0.00030136,2]
[319582958,1710882636276,-500.0,0.00030136,2]
[319582959,1710882636286,-500.0,0.00030136,2]
[319582960,1710882636295,-500.0,0.00030136,2]
[319582961,1710882636305,-547.73610564,0.00030136,2]
[319582962,1710882636315,-500.0,0.00030136,2]
[319582963,1710882636327,-500.0,0.00030136,2]
[319582964,1710882636337,-776.2,0.00030136,2]
[319582965,1710882636346,-500.0,0.00030136,2]
[319582966,1710882636357,-500.0,0.00030136,2]
[319582967,1710882636368,-500.0,0.00030136,2]
[319582968,1710882636378,-500.0,0.00030136,2]
[319582969,1710882636388,-500.0,0.00030136,2]
[319582970,1710882636398,-500.0,0.00030136,2]
[319582971,1710882636409,-500.0,0.00030136,2]
[319582972,1710882636419,-500.0,0.00030136,2]
[319582973,1710882636430,-1246.25,0.00030136,2]
[319582974,1710882636440,-500.0,0.00030136,2]
[319582975,1710882636451,-500.0,0.00030136,2]
[319582976,1710882636461,-500.0,0.00030136,2]
[319582977,1710882636472,-500.0,0.00030136,2]
[319582978,1710882636484,-500.0,0.00030136,2]
[319582979,1710882636495,-500.0,0.00030136,2]
[319582980,1710882636505,-500.0,0.00030136,2]
[319582981,1710882636516,-500.0,0.00030136,2]
[319582982,1710882636526,-500.0,0.00030136,2]
[319582983,1710882636536,-500.0,0.00030136,2]
[319582984,1710882636546,-500.0,0.00030136,2]
[319582985,1710882636556,-500.0,0.00030136,2]
[319582986,1710882636567,-500.0,0.00030136,2]
[319582987,1710882636578,-500.0,0.00030136,2]
[319582988,1710882636588,-1102.73,0.00030136,2]
[319582989,1710882636599,-500.0,0.00030136,2]
[319582990,1710882636609,-500.0,0.00030136,2]
[319582991,1710882636620,-500.0,0.00030136,2]
[319582992,1710882636631,-500.0,0.00030136,2]
[319582993,1710882636642,-500.0,0.00030136,2]
[319582994,1710882636653,-500.0,0.00030136,2]
[319582995,1710882636664,-500.0,0.00030136,2]
[319582996,1710882636674,-500.0,0.00030136,2]
[319582997,1710882636684,-541.53842361,0.00030136,2]
[319582998,1710882636695,-500.0,0.00030136,2]
[319582999,1710882636705,-500.0,0.00030136,2]
[319583000,1710882636716,-500.0,0.00030136,2]
[319583001,1710882636726,-500.0,0.00030136,2]
[319583002,1710882636735,-500.0,0.00030136,2]
[319583003,1710882636745,-500.0,0.00030136,2]
[319583004,1710882636756,-500.0,0.00030136,2]
[319583005,1710882636767,-500.0,0.00030136,2]
[319583006,1710882636780,-716.16,0.00030136,2]
[319583007,1710882636791,-500.0,0.00030136,2]
[319583008,1710882636801,-500.0,0.00030136,2]
[319583009,1710882636812,-500.0,0.00030136,2]
[319583010,1710882636822,-561.23,0.00030136,2]
[319583011,1710882636833,-500.0,0.00030136,2]
[319583012,1710882636843,-500.0,0.00030136,2]
[319583013,1710882636854,-500.0,0.00030136,2]
[319583014,1710882636865,-500.0,0.00030136,2]
[319583015,1710882636876,-500.0,0.00030136,2]
[319583016,1710882636886,-764.06,0.00030136,2]
[319583017,1710882636897,-211.68809835,0.00030136,2]
[319583018,1710882636907,-500.0,0.00030136,2]
[319583019,1710882636917,-500.0,0.00030136,2]
[319583020,1710882636927,-1256.95,0.00030136,2]
[319583021,1710882636937,-500.0,0.00030136,2]
[319583022,1710882636948,-500.0,0.00030136,2]
[319583023,1710882636958,-500.0,0.00030136,2]
[319583024,1710882636968,-500.0,0.00030136,2]
[319583025,1710882636978,-500.0,0.00030136,2]
[319583026,1710882636988,-500.0,0.00030136,2]
[319583027,1710882636998,-521.36,0.00030136,2]
[319583028,1710882637009,-500.0,0.00030136,2]
[319583029,1710882637019,-500.0,0.00030136,2]
[319583030,1710882637029,-500.0,0.00030136,2]
[319583031,1710882637038,-500.0,0.00030136,2]
[319583032,1710882637048,-500.0,0.00030136,2]
[319583033,1710882637057,-539.04,0.00030136,2]
[319583034,1710882637067,-500.0,0.00030136,2]
[319583035,1710882637077,-500.0,0.00030136,2]
[319583036,1710882637086,-500.0,0.00030136,2]
[319583037,1710882637096,-500.0,0.00030136,2]
[319583038,1710882637105,-500.0,0.00030136,2]
[319583039,1710882637114,-618.62,0.00030136,2]
[319583040,1710882637123,-1695.63,0.00030136,2]
[319583041,1710882637133,-243.4075643,0.00030136,2]
[319583042,1710882637142,-500.0,0.00030136,2]
[319583043,1710882637152,-500.0,0.00030136,2]
[319583044,1710882637161,-500.0,0.00030136,2]
[319583045,1710882637171,-1127.21,0.00030136,2]
[319583046,1710882637180,-500.0,0.00030136,2]
[319583047,1710882637190,-513.7,0.00030136,2]
[319583048,1710882637199,-500.0,0.00030136,2]
[319583049,1710882637208,-500.0,0.00030136,2]
[319583050,1710882637218,-500.0,0.00030136,2]
[319583051,1710882637227,-500.0,0.00030136,2]
[319583052,1710882637236,-500.0,0.00030136,2]
[319583053,1710882637246,-500.0,0.00030136,2]
[319583054,1710882637255,-500.0,0.00030136,2]
[319583055,1710882637265,-500.0,0.00030136,2]
[319583056,1710882637275,-902.39,0.00030136,2]
[319583057,1710882637284,-500.0,0.00030136,2]
[319583058,1710882637293,-500.0,0.00030136,2]
[319583059,1710882637303,-500.0,0.00030136,2]
[319583060,1710882637312,-500.0,0.00030136,2]
[319583061,1710882637321,-567.59,0.00030136,2]
[319583062,1710882637332,-558.75,0.00030136,2]
[319583063,1710882637341,-500.0,0.00030136,2]
[319583064,1710882637350,-848.63,0.00030136,2]
[319583065,1710882637359,-4519.43,0.00030136,2]
[319583066,1710882637368,-500.0,0.00030136,2]
[319583067,1710882637378,-500.0,0.00030136,2]
[319583068,1710882637389,-500.0,0.00030136,2]
[319583069,1710882637398,-500.0,0.00030136,2]
[319583070,1710882637408,-4275.98,0.00030136,2]
[319583071,1710882637417,-908.19,0.00030136,2]
[319583072,1710882637427,-700.08,0.00030136,2]
[319583073,1710882637436,-500.0,0.00030136,2]
[319583074,1710882637446,-500.0,0.00030136,2]
[319583075,1710882637456,-500.0,0.00030136,2]
[319583076,1710882637466,-165.80528402,0.00030136,2]
[319583077,1710882637525,-334.19471598,0.00030136,2]
[319583078,1710882637535,-500.0,0.00030136,2]
[319583079,1710882637544,-49.35523402,0.00030136,2]
[319583080,1710882637556,-466.79476598,0.00030136,2]
[319583081,1710882637566,-379.67523402,0.00030136,2]
[319583082,1710882637578,-157.15476598,0.00030136,2]
[319583083,1710882637587,-193.07523392,0.00030136,2]
[319583084,1710882637599,-306.92476608,0.00030136,2]
[319583085,1710882637608,-426.48006828,0.00030136,2]
[319583086,1710882637618,-228.79994623,0.00030136,2]
[319583087,1710882637627,-1862.94,0.00030136,2]
[319583088,1710882637637,-59.63714332,0.00030136,2]
[319583089,1710882637651,-1571.14285668,0.00030136,2]
[319583090,1710882637661,-953.09,0.00030136,2]
[319583091,1710882637671,-502.10895618,0.00030136,2]
[319583092,1710882637681,-472.26993911,0.00030136,2]
[319583093,1710882637690,-500.0,0.00030136,2]
[319583094,1710882637700,-500.0,0.00030136,2]
[319583095,1710882637710,-1029.94,0.00030136,2]
[319583096,1710882637720,-500.0,0.00030136,2]
[319583097,1710882637730,-760.87,0.00030136,2]
[319583098,1710882637740,-639.99,0.00030136,2]
[319583099,1710882637750,-2802.72,0.00030136,2]
[319583100,1710882637760,-844.92,0.00030136,2]
[319583101,1710882637770,-500.0,0.00030136,2]
[319583102,1710882637780,-601.64868855,0.00030136,2]
[319583103,1710882637791,-500.0,0.00030136,2]
[319583104,1710882637802,-1851.56,0.00030136,2]
[319583105,1710882637812,-893.01,0.00030136,2]
[319583106,1710882637822,-4832.55,0.00030136,2]
[319583107,1710882637833,-500.0,0.00030136,2]
[319583108,1710882637842,-500.0,0.00030136,2]
[319583109,1710882637852,-699.87,0.00030136,2]
[319583110,1710882637861,-500.0,0.00030136,2]
[319583111,1710882637871,-500.0,0.00030136,2]
[319583112,1710882637880,-500.0,0.00030136,2]
[319583113,1710882637890,-1578.23,0.00030136,2]
[319583114,1710882637900,-500.0,0.00030136,2]
[319583115,1710882637909,-783.57955648,0.00030136,2]
[319583154,1710882640455,-180.95,0.00024049,2]
[319583155,1710882640465,-222.032006,0.00026018,2]
[319583156,1710882640475,-324.18,0.00026029,2]
[319583157,1710882640484,-324.18,0.00026029,2]
[319583158,1710882640494,-324.18,0.00026029,2]
[319583159,1710882640503,-324.18,0.00026029,2]
[319583160,1710882640513,-324.18,0.00026029,2]
[319583161,1710882640522,-324.18,0.00026029,2]
[319583162,1710882640531,-324.18,0.00026029,2]
[319583163,1710882640541,-324.18,0.00026029,2]
[319583164,1710882640550,-324.18,0.00026029,2]
[319583165,1710882640560,-324.18,0.00026029,2]
[319583166,1710882640569,-1391.210279,0.00029963,2]
[319583167,1710882640579,-180.95,0.00030061,120]
[319583168,1710882640589,-65.02044352,0.00030136,2]
[319583169,1710882640598,-500.0,0.00030136,2]
[319583170,1710882640607,-500.0,0.00030136,2]
[319583171,1710882640617,-540.69,0.00030136,2]
[319583172,1710882640626,-500.0,0.00030136,2]
[319583173,1710882640636,-1058.72,0.00030136,2]
[319583174,1710882640646,-296.38741061,0.00030136,2]
[319583175,1710882640656,-52.47486088,0.00030136,2]
[319583176,1710882640668,-447.52513912,0.00030136,2]
[319583177,1710882640678,-500.0,0.00030136,2]
[319583178,1710882640687,-500.0,0.00030136,2]
[319583179,1710882640696,-500.0,0.00030136,2]
[319583180,1710882640705,-550.0,0.00030136,2]
[319583181,1710882640714,-500.0,0.00030136,2]
[319583182,1710882640723,-1081.51,0.00030136,2]
[319583183,1710882640732,-568.17,0.00030136,2]
[319583184,1710882640742,-573.31,0.00030136,2]
[319583185,1710882640753,-500.0,0.00030136,2]
[319583186,1710882640764,-500.0,0.00030136,2]
[319583187,1710882640773,-564.68,0.00030136,2]
[319583188,1710882640782,-634.38,0.00030136,2]
[319583189,1710882640792,-500.0,0.00030136,2]
[319583190,1710882640802,-500.0,0.00030136,2]
[319583191,1710882640811,-863.98,0.00030136,2]
[319583192,1710882640821,-1732.43,0.00030136,2]
[319583193,1710882640830,-500.0,0.00030136,2]
[319583194,1710882640839,-500.0,0.00030136,2]
[319583195,1710882640850,-928.06,0.00030136,2]
[319583196,1710882640861,-3609.50422773,0.00030136,2]
[319583197,1710882640874,-845.28577227,0.00030136,2]
[319583198,1710882640883,-648.75,0.00030136,2]
[319583199,1710882640892,-500.0,0.00030136,2]
[319583200,1710882640901,-2012.65,0.00030136,2]
[319583201,1710882640910,-500.0,0.00030136,2]
[319583202,1710882640920,-1292.54,0.00030136,2]
[319583203,1710882640930,-343.59474837,0.00030136,2]
[319583204,1710882640939,-595.46,0.00030136,2]
[319583205,1710882640947,-2000.85,0.00030136,2]
[319583206,1710882640956,-502.3572228,0.00030136,2]
[319583207,1710882640966,-500.0,0.00030136,2]
[319583208,1710882640975,-500.0,0.00030136,2]
[319583209,1710882640984,-500.0,0.00030136,2]
[319583210,1710882640993,-500.0,0.00030136,2]
[319583211,1710882641002,-500.0,0.00030136,2]
[319583212,1710882641011,-744.28,0.00030136,2]
[319583213,1710882641020,-500.0,0.00030136,2]
[319583214,1710882641029,-806.21,0.00030136,2]
[319583215,1710882641038,-903.81,0.00030136,2]
[319583216,1710882641047,-506.14,0.00030136,2]
[319583217,1710882641056,-1675.93,0.00030136,2]
[319583218,1710882641065,-500.0,0.00030136,2]
[319583219,1710882641074,-513.3,0.00030136,2]
[319583220,1710882641084,-177.71262996,0.00030136,2]
[319583221,1710882641093,-2.72161418,0.00030136,2]
[319583222,1710882641105,-497.27838582,0.00030136,2]
[319583223,1710882641114,-500.0,0.00030136,2]
[319583224,1710882641123,-587.47,0.00030136,2]
[319583225,1710882641132,-463.17291269,0.00030136,2]
[319583226,1710882641140,-500.0,0.00030136,2]
[319583227,1710882641149,-500.0,0.00030136,2]
[319583228,1710882641158,-500.0,0.00030136,2]
[319583229,1710882641168,-1578.3,0.00030136,2]
[319583230,1710882641177,-500.0,0.00030136,2]
[319583231,1710882641185,-1111.94,0.00030136,2]
[319583232,1710882641195,-500.0,0.00030136,2]
[319583233,1710882641205,-500.0,0.00030136,2]
[319583234,1710882641214,-500.0,0.00030136,2]
[319583235,1710882641223,-1381.5,0.00030136,2]
[319583236,1710882641232,-500.0,0.00030136,2]
[319583237,1710882641241,-500.0,0.00030136,2]
[319583238,1710882641251,-1076.95,0.00030136,2]
[319583239,1710882641260,-742.57,0.00030136,2]
[319583240,1710882641269,-500.0,0.00030136,2]
[319583241,1710882641279,-816.58,0.00030136,2]
[319583242,1710882641288,-500.0,0.00030136,2]
[319583243,1710882641297,-1100.68,0.00030136,2]
[319583244,1710882641307,-507.38,0.00030136,2]
[319583245,1710882641316,-198.96388413,0.00030136,2]
[319583246,1710882641326,-500.0,0.00030136,2]
[319583247,1710882641338,-500.0,0.00030136,2]
[319583248,1710882641347,-500.0,0.00030136,2]
[319583249,1710882641356,-783.55,0.00030136,2]
[319583250,1710882641365,-500.0,0.00030136,2]
[319583251,1710882641375,-500.0,0.00030136,2]
[319583252,1710882641384,-564.76,0.00030136,2]
[319583253,1710882641394,-1637.32,0.00030136,2]
[319583254,1710882641404,-500.0,0.00030136,2]
[319583255,1710882641413,-500.0,0.00030136,2]
[319583256,1710882641422,-500.0,0.00030136,2]
[319583257,1710882641431,-1226.09,0.00030136,2]
[319583258,1710882641441,-1431.9,0.00030136,2]
[319583259,1710882641450,-500.0,0.00030136,2]
[319583260,1710882641460,-500.0,0.00030136,2]
[319583261,1710882641470,-500.0,0.00030136,2]
[319583262,1710882641480,-500.0,0.00030136,2]
[319583263,1710882641490,-1130.36,0.00030136,2]
[319583264,1710882641500,-500.0,0.00030136,2]
[319583265,1710882641510,-501.21753667,0.00030136,2]
[319583266,1710882641521,-151.0,0.00030136,7]
[319583267,1710882641532,-151.0,0.00030136,7]
[319583268,1710882641542,-151.0,0.00030136,7]
[319583269,1710882641551,-2046.05,0.00030136,2]
[319583270,1710882641561,-500.0,0.00030136,2]
[319583271,1710882641571,-265.58,0.00030136,2]
[319583272,1710882641583,-500.0,0.00030136,2]
[319583273,1710882641701,-500.0,0.00030136,2]
[319583274,1710882641721,-500.0,0.00030136,2]
[319583275,1710882641730,-500.0,0.00030136,2]
[319583276,1710882641740,-500.0,0.00030136,2]
[319583277,1710882641750,-500.0,0.00030136,2]
[319583278,1710882641762,-1041.39,0.00030136,2]
[319583279,1710882641772,-500.0,0.00030136,2]
[319583280,1710882641782,-1008.74,0.00030136,2]
[319583281,1710882641792,-593.99,0.00030136,2]
[319583282,1710882641803,-1271.62,0.00030136,2]
[319583283,1710882641814,-500.0,0.00030136,2]
[319583284,1710882641823,-500.0,0.00030136,2]
[319583285,1710882641834,-652.08,0.00030136,2]
[319583286,1710882641844,-1363.16,0.00030136,2]
[319583287,1710882641854,-517.33,0.00030136,2]
[319583288,1710882641865,-500.0,0.00030136,2]
[319583289,1710882641874,-500.0,0.00030136,2]
[319583290,1710882641884,-500.0,0.00030136,2]
[319583291,1710882641894,-215.24915689,0.00030136,2]
[319583292,1710882641904,-756.3,0.00030136,2]
[319583293,1710882641913,-1207.59,0.00030136,2]
[319583294,1710882641924,-500.0,0.00030136,2]
[319583295,1710882641934,-500.0,0.00030136,2]
[319583296,1710882641944,-498.3808147,0.00030136,2]
[319583297,1710882641953,-500.0,0.00030136,2]
[319583298,1710882641962,-1315.62,0.00030136,2]
[319583299,1710882641972,-500.0,0.00030136,2]
[319583300,1710882641982,-500.0,0.00030136,2]
[319583301,1710882641992,-532.36,0.00030136,2]
[319583302,1710882642001,-500.0,0.00030136,2]
[319583303,1710882642011,-500.0,0.00030136,2]
[319583304,1710882642021,-2648.29,0.00030136,2]
[319583305,1710882642031,-1195.01,0.00030136,2]
[319583306,1710882642041,-500.0,0.00030136,2]
[319583307,1710882642052,-500.0,0.00030136,2]
[319583308,1710882642061,-1423.2,0.00030136,2]
[319583309,1710882642072,-1120.3,0.00030136,2]
[319583310,1710882642083,-500.0,0.00030136,2]
[319583311,1710882642092,-616.06,0.00030136,2]
[319583312,1710882642102,-500.0,0.00030136,2]
[319583313,1710882642112,-500.0,0.00030136,2]
[319583314,1710882642121,-500.0,0.00030136,2]
[319583315,1710882642131,-500.0,0.00030136,2]
[319583316,1710882642140,-500.0,0.00030136,2]
[319583317,1710882642150,-171.83651152,0.00030136,2]
[319583318,1710882642162,-500.0,0.00030136,2]
[319583319,1710882642172,-500.0,0.00030136,2]
[319583320,1710882642182,-500.0,0.00030136,2]
[319583321,1710882642192,-1018.0,0.00030136,2]
[319583322,1710882642203,-2172.61,0.00030136,2]
[319583323,1710882642213,-634.52,0.00030136,2]
[319583324,1710882642223,-500.0,0.00030136,2]
[319583325,1710882642234,-500.0,0.00030136,2]
[319583326,1710882642244,-500.0,0.00030136,2]
[319583327,1710882642255,-500.0,0.00030136,2]
[319583328,1710882642265,-500.0,0.00030136,2]
[319583329,1710882642276,-735.14,0.00030136,2]
[319583330,1710882642286,-1186.06,0.00030136,2]
[319583331,1710882642296,-500.0,0.00030136,2]
[319583332,1710882642307,-514.56,0.00030136,2]
[319583333,1710882642317,-500.0,0.00030136,2]
[319583334,1710882642327,-2175.94,0.00030136,2]
[319583335,1710882642339,-500.0,0.00030136,2]
[319583336,1710882642350,-897.07,0.00030136,2]
[319583337,1710882642360,-1030.54,0.00030136,2]
[319583338,1710882642371,-772.46,0.00030136,2]
[319583339,1710882642381,-500.0,0.00030136,2]
[319583340,1710882642392,-500.0,0.00030136,2]
[319583341,1710882642402,-1693.72,0.00030136,2]
[319583342,1710882642412,-500.0,0.00030136,2]
[319583343,1710882642423,-2506.82,0.00030136,2]
[319583344,1710882642434,-4870.39,0.00030136,2]
[319583345,1710882642445,-151.0,0.00030136,7]
[319583346,1710882642455,-588.96,0.00030136,2]
[319583347,1710882642464,-151.0,0.00030136,7]
[319583348,1710882642474,-151.0,0.00030136,7]
[319583349,1710882642484,-1598.02,0.00030136,2]
[319583350,1710882642495,-500.0,0.00030136,2]
[319583351,1710882642505,-500.0,0.00030136,2]
[319583352,1710882642515,-151.0,0.00030136,7]
[319583353,1710882642525,-151.0,0.00030136,7]
[319583354,1710882642535,-735.22,0.00030136,2]
[319583355,1710882642545,-151.0,0.00030136,7]
[319583356,1710882642555,-1100.45,0.00030136,2]
[319583357,1710882642565,-500.0,0.00030136,2]
[319583358,1710882642574,-500.0,0.00030136,2]
[319583359,1710882642584,-500.0,0.00030136,2]
[319583360,1710882642595,-1284.7,0.00030136,2]
[319583361,1710882642606,-500.0,0.00030136,2]
[319583362,1710882642617,-500.0,0.00030136,2]
[319583363,1710882642626,-500.0,0.00030136,2]
[319583364,1710882642635,-570.86,0.00030136,2]
[319583365,1710882642644,-1532.25,0.00030136,2]
[319583366,1710882642653,-500.0,0.00030136,2]
[319583367,1710882642662,-500.0,0.00030136,2]
[319583368,1710882642673,-500.0,0.00030136,2]
[319583369,1710882642682,-500.0,0.00030136,2]
[319583370,1710882642692,-500.08,0.00030136,2]
[319583371,1710882642701,-500.0,0.00030136,2]
[319583372,1710882642711,-500.0,0.00030136,2]
[319583373,1710882642720,-527.97,0.00030136,2]
[319583374,1710882642729,-500.0,0.00030136,2]
[319583375,1710882642739,-500.0,0.00030136,2]
[319583376,1710882642749,-838.67,0.00030136,2]
[319583377,1710882642759,-2264.13,0.00030136,2]
[319583378,1710882642776,-500.0,0.00030136,2]
[319583379,1710882642786,-500.0,0.00030136,2]
[319583380,1710882642797,-500.0,0.00030136,2]
[319583381,1710882642808,-1493.57,0.00030136,2]
[319583382,1710882642818,-587.05,0.00030136,2]
[319583383,1710882642828,-500.0,0.00030136,2]
[319583384,1710882642838,-1865.96,0.00030136,2]
[319583385,1710882642849,-1400.84,0.00030136,2]
[319583386,1710882642860,-500.0,0.00030136,2]
[319583387,1710882642870,-800.07,0.00030136,2]
[319583388,1710882642879,-500.0,0.00030136,2]
[319583389,1710882642889,-500.0,0.00030136,2]
[319583390,1710882642898,-500.0,0.00030136,2]
[319583392,1710882642908,-755.1,0.00030136,2]
[319583394,1710882642917,-749.15,0.00030136,2]
[319583395,1710882642928,-500.0,0.00030136,2]
[319583396,1710882642937,-540.13,0.00030136,2]
[319583397,1710882642947,-500.0,0.00030136,2]
[319583398,1710882642956,-1710.31,0.00030136,2]
[319583399,1710882642966,-500.0,0.00030136,2]
[319583401,1710882642975,-500.0,0.00030136,2]
[319583403,1710882642985,-500.0,0.00030136,2]
[319583404,1710882642995,-500.0,0.00030136,2]
[319583405,1710882643004,-1919.06,0.00030136,2]
[319583406,1710882643014,-1489.87,0.00030136,2]
[319583407,1710882643023,-1065.7,0.00030136,2]
[319583408,1710882643033,-500.0,0.00030136,2]
[319583409,1710882643043,-500.0,0.00030136,2]
[319583410,1710882643053,-500.0,0.00030136,2]
[319583411,1710882643062,-500.0,0.00030136,2]
[319583412,1710882643072,-2817.73,0.00030136,2]
[319583413,1710882643082,-1262.48,0.00030136,2]